bitfinex/quotes_SOLUSD_20240729
["timestamp","ask_amount","ask_price","bid_price","bid_amount"]
[1722284229294,50.5348,186.4,186.39,0.93336618]
[1722284229693,5.5348,186.4,186.39,0.93336618]
[1722284229898,17.9048,186.4,186.39,0.93336618]
[1722284231206,62.9048,186.4,186.39,0.93336618]
[1722284231385,5.5348,186.4,186.39,0.93336618]
[1722284231909,17.9048,186.4,186.39,0.93336618]
[1722284232115,12.54,186.4,186.39,0.93336618]
[1722284232287,5.3639,186.43,186.39,0.93336618]
[1722284233800,12.37,186.43,186.4,5.3646]
[1722284234100,17.7335,186.45,186.4,6.4373701]
[1722284234304,17.7335,186.45,186.4,5.3646]
[1722284234502,12.37,186.45,186.41,6.43714312]
[1722284234996,6.29617715,186.5,186.41,12.37]
[1722284235184,22.0452067,186.49,186.43,5.3636]
[1722284235385,12.37,186.49,186.43,5.3636]
[1722284235887,17.7322,186.49,186.43,5.3636]
[1722284236287,17.7322,186.49,186.44,1.07252303]
[1722284236506,17.7322,186.49,186.43,5.3636]
[1722284236697,5.3622,186.49,186.43,5.3636]
[1722284236877,17.7322,186.49,186.43,5.3636]
[1722284237285,45.0,186.48,186.44,1.07252328]
[1722284237503,45.0,186.48,186.43,5.3636]
[1722284239410,50.3626,186.48,186.43,5.3636]
[1722284240912,5.3618,186.51,186.45,5.3633]
[1722284241120,12.37,186.5,186.45,5.3633]
[1722284242429,17.7319,186.5,186.45,5.3633]
[1722284243924,45.0,186.49,186.45,5.3633]
[1722284244421,50.3622,186.49,186.44,5.3636]
[1722284249040,12.37,186.45,186.39,6.29836618]
[1722284249209,17.7342,186.43,186.39,0.93336618]
[1722284249406,45.17,186.42,186.39,0.93336618]
[1722284249744,17.733,186.47,186.41,5.3644]
[1722284250030,50.5331,186.46,186.41,5.3644]
[1722284251100,50.5331,186.46,186.39,13.30336618]
[1722284251101,12.37,186.44,186.39,0.93336618]
[1722284251326,45.17,186.43,186.39,0.93336618]
[1722284252126,50.5339,186.43,186.39,0.93336618]
[1722284252707,62.9039,186.43,186.39,0.93336618]
[1722284252914,57.54,186.43,186.39,0.93336618]
[1722284253108,17.7347,186.41,186.39,0.93336618]
[1722284253323,45.0,186.4,186.39,0.93336618]
[1722284253522,45.17,186.4,186.39,0.93336618]
[1722284254736,5.3641,186.43,186.39,0.93336618]
[1722284254921,0.17,186.42,186.39,0.93336618]
[1722284255121,45.17,186.42,186.39,0.93336618]
[1722284255707,45.17,186.42,186.39,6.29836618]
[1722284255938,45.0,186.43,186.39,6.29836618]
[1722284256716,45.0,186.43,186.39,0.93336618]
[1722284257636,0.17,186.44,186.39,0.93336618]
[1722284257832,12.37,186.46,186.39,13.30336618]
[1722284258136,45.17,186.45,186.39,13.30336618]
[1722284258506,12.37,186.46,186.39,13.30336618]
[1722284258709,5.3629,186.47,186.39,35.60756618]
[1722284258926,5.3629,186.47,186.41,5.3644]
[1722284259137,5.3631,186.46,186.41,5.3644]
[1722284261035,17.9028,186.47,186.41,5.3644]
[1722284261331,5.5328,186.47,186.41,5.3644]
[1722284263132,5.3639,186.43,186.39,23.23756618]
[1722284263720,5.3636,186.44,186.39,23.23756618]
[1722284264247,5.3603,186.56,186.51,5.3614]
[1722284264424,5.3608,186.54,186.5,12.37]
[1722284265362,5.3603,186.56,186.5,12.37]
[1722284265543,45.17,186.55,186.48,12.37]
[1722284265748,12.37,186.54,186.49,5.3621]
[1722284265965,57.37,186.54,186.5,5.3619]
[1722284266165,12.37,186.54,186.5,5.3619]
[1722284267247,0.17,186.55,186.51,6.43379462]
[1722284267668,17.7299,186.57,186.52,1.07214461]
[1722284268075,17.7302,186.56,186.51,5.3616]
[1722284268969,45.0,186.55,186.51,5.3616]
[1722284269543,62.7305,186.55,186.49,5.3619]
[1722284270660,57.37,186.55,186.48,12.37]
[1722284270845,45.0,186.55,186.51,5.3614]
[1722284272249,45.0,186.55,186.52,5.3612]
[1722284272569,45.0,186.56,186.52,5.3612]
[1722284274263,50.3602,186.56,186.51,5.3616]
[1722284276265,45.0,186.56,186.51,5.3616]
[1722284276674,50.3603,186.56,186.51,5.3616]
[1722284279673,45.0,186.56,186.51,5.3616]
[1722284280472,45.0,186.56,186.5,12.37]
[1722284281979,45.17,186.57,186.5,12.37]
[1722284282179,50.53,186.57,186.5,12.37]
[1722284284163,45.17,186.57,186.5,12.37]
[1722284284859,12.37,186.54,186.44,22.0622]
[1722284285063,57.37,186.53,186.46,12.37]
[1722284285793,17.9003,186.56,186.48,12.37]
[1722284285963,45.0,186.55,186.48,12.37]
[1722284286161,45.0,186.55,186.44,23.13443597]
[1722284286162,12.54,186.56,186.49,12.37]
[1722284286361,17.7298,186.58,186.5,12.37]
[1722284286581,50.53,186.57,186.5,12.37]
[1722284286764,45.17,186.57,186.5,12.37]
[1722284286962,50.5299,186.57,186.5,12.37]
[1722284290161,50.3599,186.57,186.5,12.37]
[1722284290363,12.37,186.58,186.5,12.37]
[1722284291366,5.3599,186.57,186.5,12.37]
[1722284291666,45.17,186.56,186.5,12.37]
[1722284291983,45.17,186.56,186.46,1.0720878]
[1722284292175,45.17,186.56,186.5,12.37]
[1722284294980,5.3604,186.55,186.48,12.37]
[1722284295193,45.0,186.54,186.48,12.37]
[1722284295570,50.3605,186.55,186.47,12.37]
[1722284295777,0.17,186.54,186.47,12.37]
[1722284295975,0.17,186.54,186.48,1.0722779]
[1722284296290,16.75200951,186.6,186.51,12.37]
[1722284296291,15.8184,186.6,186.51,12.37]
[1722284296476,12.37,186.59,186.51,12.37]
[1722284297480,45.17,186.58,186.51,12.37]
[1722284297670,45.0,186.58,186.52,12.37]
[1722284297871,45.0,186.59,186.52,12.37]
[1722284298272,12.37,186.61,186.54,12.37]
[1722284298996,28.3295,186.64,186.54,12.37]
[1722284299191,12.37,186.6,186.5,22.0878]
[1722284299499,12.37,186.6,186.53,12.37]
[1722284299871,12.37,186.62,186.54,12.37]
[1722284300074,45.0,186.61,186.54,12.37]
[1722284302284,45.0,186.61,186.56,12.37]
[1722284302678,45.17,186.62,186.56,12.37]
[1722284302992,0.17,186.61,186.56,12.37]
[1722284309502,12.37,186.6,186.53,12.37]
[1722284309685,45.17,186.59,186.53,12.37]
[1722284311583,12.37,186.62,186.54,12.37]
[1722284311786,45.0,186.61,186.54,12.37]
[1722284334530,45.0,186.61,186.58,12.37]
[1722284334840,0.93348158,186.69,186.6,12.37]
[1722284335016,12.37,186.72,186.64,12.37]
[1722284335217,9.66359137,186.71,186.64,12.37]
[1722284335527,12.37,186.7,186.64,12.37]
[1722284335907,16.6288,186.74,186.65,12.37]
[1722284336106,12.37,186.77,186.69,12.37]
[1722284336313,12.37,186.77,186.7,12.37]
[1722284336520,12.37,186.77,186.69,12.37]
[1722284336913,16.6288,186.8,186.71,12.37]
[1722284337111,12.37,186.78,186.71,12.37]
[1722284337315,12.37,186.79,186.71,12.37]
[1722284339727,7.42980777,186.82,186.71,12.37]
[1722284339922,12.37,186.79,186.71,12.37]
[1722284340128,21.981,186.84,186.71,18.7794]
[1722284340329,12.37,186.8,186.71,18.7794]
[1722284341323,45.17,186.79,186.73,12.37]
[1722284342334,45.17,186.79,186.74,12.37]
[1722284342542,11.90989944,186.87,186.75,12.37]
[1722284342841,12.37,186.84,186.76,12.37]
[1722284343811,45.0,186.83,186.76,12.37]
[1722284344411,45.0,186.83,186.77,12.37]
[1722284344608,45.17,186.84,186.77,12.37]
[1722284344806,45.0,186.84,186.75,32.37]
[1722284345010,45.0,186.84,186.81,12.37]
[1722284345242,45.0,186.84,186.8,12.37]
[1722284345428,45.0,186.84,186.81,1.0704809]
[1722284345731,6.6537,186.91,186.81,13.4404809]
[1722284345732,5.5667,186.91,186.81,13.4404809]
[1722284345936,12.37,186.89,186.81,13.4404809]
[1722284347012,0.2164,186.91,186.81,12.37]
[1722284347211,12.37,186.89,186.81,12.37]
[1722284347437,12.37,186.87,186.8,27.8276]
[1722284347618,5.5668,186.91,186.81,12.37]
[1722284347817,12.37,186.89,186.81,12.37]
[1722284348629,0.17,186.88,186.82,12.37]
[1722284348929,12.37,186.89,186.82,12.37]
[1722284349317,45.0,186.88,186.83,12.37]
[1722284349713,0.2164,186.91,186.83,12.37]
[1722284349920,12.37,186.9,186.83,12.37]
[1722284351453,12.37,186.88,186.81,12.37]
[1722284352423,45.0,186.87,186.82,12.37]
[1722284352642,57.54,186.89,186.82,12.37]
[1722284352822,0.17,186.88,186.82,12.37]
[1722284354118,45.0,186.89,186.83,12.37]
[1722284354342,12.37,186.9,186.83,12.37]
[1722284355417,45.17,186.89,186.83,12.37]
[1722284356722,45.0,186.89,186.84,12.37]
[1722284356923,45.0,186.9,186.84,12.37]
[1722284357640,12.37,186.89,186.8,15.4576]
[1722284357818,45.0,186.88,186.81,12.37]
[1722284358229,45.0,186.88,186.8,15.4576]
[1722284358530,12.54,186.87,186.8,27.8276]
[1722284358756,45.0,186.86,186.8,27.8276]
[1722284359242,0.17,186.87,186.83,12.37]
[1722284359420,12.37,186.9,186.82,12.37]
[1722284359623,45.17,186.89,186.84,12.37]
[1722284359833,0.2164,186.91,186.84,12.37]
[1722284360021,45.2164,186.91,186.84,12.37]
[1722284361434,0.17,186.9,186.84,12.37]
[1722284363044,0.17,186.9,186.85,6.4413]
[1722284363251,0.17,186.9,186.86,12.37]
[1722284364346,12.37,186.88,186.8,15.4576]
[1722284364537,12.37,186.85,186.8,15.4576]
[1722284364940,45.0,186.84,186.8,15.4576]
[1722284366340,12.54,186.85,186.8,15.4576]
[1722284366341,0.17,186.85,186.8,15.4576]
[1722284366544,12.37,186.87,186.8,15.4576]
[1722284366848,45.17,186.86,186.8,27.8276]
[1722284367055,0.17,186.86,186.8,27.8276]
[1722284368038,45.0,186.87,186.8,27.8276]
[1722284368753,45.0,186.87,186.8,15.4576]
[1722284369265,12.37,186.86,186.8,15.4576]
[1722284369436,45.0,186.85,186.8,15.4576]
[1722284369762,15.8876,186.91,186.83,12.37]
[1722284369965,12.5864,186.91,186.83,12.37]
[1722284371235,45.17,186.9,186.83,12.37]
[1722284372935,45.17,186.9,186.85,12.37]
[1722284374274,45.17,186.9,186.83,12.37]
[1722284375464,12.37,186.88,186.8,27.8276]
[1722284375647,45.17,186.87,186.8,27.8276]
[1722284376474,45.17,186.87,186.8,15.4576]
[1722284376659,45.17,186.87,186.82,12.37]
[1722284376841,45.17,186.87,186.83,1.07034834]
[1722284377171,45.17,186.87,186.82,12.37]
[1722284379144,12.5864,186.91,186.83,12.37]
[1722284379337,0.17,186.9,186.83,12.37]
[1722284379658,0.17,186.9,186.85,12.37]
[1722284380044,0.17,186.9,186.86,1.07017659]
[1722284380454,0.17,186.9,186.86,13.44017659]
[1722284381152,0.17,186.9,186.87,1.07014011]
[1722284381864,0.2164,186.91,186.88,12.37]
[1722284382165,0.2164,186.91,186.9,12.37]
[1722284382461,0.2164,186.91,186.9,13.43993922]
[1722284382663,0.2164,186.91,186.9,12.37]
[1722284388665,0.2164,186.91,186.88,16.3897]
[1722284388845,0.2164,186.91,186.9,12.37]
[1722284396291,0.2164,186.91,186.9,13.43981467]
[1722284396652,0.2164,186.91,186.9,12.37]
[1722284410491,0.2164,186.91,186.83,15.0089]
[1722284410683,0.2164,186.91,186.74,44.3730488]
[1722284410684,15.3631,186.9,186.74,44.3730488]
[1722284410884,45.17,186.89,186.75,50.55036341]
[1722284411073,45.17,186.89,186.83,12.37]
[1722284411275,45.17,186.89,186.84,12.37]
[1722284411473,45.17,186.89,186.87,12.37]
[1722284411682,45.17,186.89,186.88,12.37]
[1722284411977,15.3631,186.9,186.84,49.48]
[1722284412185,15.3631,186.9,186.87,12.37]
[1722284412779,45.17,186.89,186.85,12.37]
[1722284413391,45.17,186.89,186.86,12.37]
[1722284417794,45.17,186.89,186.79,20.0]
[1722284417999,45.17,186.89,186.86,12.37]
[1722284420391,45.17,186.89,186.77,20.0]
[1722284420392,45.17,186.89,186.74,47.17551126]
[1722284420587,45.17,186.89,186.83,12.37]
[1722284422603,45.17,186.89,186.82,12.37]
[1722284422604,63.7047,186.89,186.82,12.37]
[1722284423805,69.0554,186.89,186.82,12.37]
[1722284424700,63.7047,186.89,186.82,12.37]
[1722284425084,51.3347,186.89,186.83,12.37]
[1722284425286,51.3347,186.89,186.82,12.37]
[1722284425515,51.3347,186.89,186.83,12.37]
[1722284426993,56.6854,186.89,186.75,49.48]
[1722284427318,56.6854,186.89,186.81,12.37]
[1722284427508,69.0554,186.89,186.81,12.37]
[1722284427813,5.351,186.88,186.81,12.37]
[1722284427999,45.17,186.87,186.81,12.37]
[1722284428303,63.7047,186.89,186.76,20.0]
[1722284428304,45.0,186.86,186.76,20.0]
[1722284428497,0.17,186.85,186.81,12.37]
[1722284432192,0.17,186.85,186.82,12.37]
[1722284433089,27.7157,186.84,186.68,20.0]
[1722284433297,57.54,186.83,186.68,20.0]
[1722284433492,62.8925,186.83,186.75,12.37]
[1722284433692,12.37,186.81,186.67,5.57857234]
[1722284433900,17.7238,186.79,186.7,12.37]
[1722284434211,45.17,186.8,186.74,12.37]
[1722284434423,45.0,186.79,186.75,12.37]
[1722284434602,0.17,186.78,186.75,12.37]
[1722284434912,0.17,186.8,186.77,12.37]
[1722284436090,0.17,186.8,186.7,20.0]
[1722284436410,0.17,186.8,186.68,21.5155]
[1722284436411,0.17,186.8,186.73,12.37]
[1722284436914,5.3538,186.78,186.68,21.5155]
[1722284437113,45.17,186.77,186.73,12.37]
[1722284437302,0.17,186.77,186.73,12.37]
[1722284441893,0.17,186.77,186.75,12.37]
[1722284443695,16.3588,186.82,186.76,12.37]
[1722284445289,45.17,186.81,186.76,12.37]
[1722284445933,50.5231,186.81,186.68,21.5155]
[1722284446100,17.7233,186.8,186.68,21.5155]
[1722284446298,45.17,186.79,186.71,12.37]
[1722284446621,17.7239,186.78,186.71,12.37]
[1722284446795,45.17,186.77,186.71,12.37]
[1722284447298,45.17,186.77,186.68,15.0443]
[1722284449328,45.17,186.77,186.65,30.42125243]
[1722284449501,45.17,186.77,186.66,20.0]
[1722284450317,45.0,186.76,186.66,20.0]
[1722284450509,0.17,186.75,186.66,20.0]
[1722284450703,0.17,186.77,186.66,20.0]
[1722284451416,0.17,186.77,186.67,1.07110556]
[1722284451597,0.17,186.77,186.66,20.0]
[1722284454414,0.17,186.77,186.66,40.0]
[1722284454724,0.17,186.77,186.66,20.0]
[1722284455223,0.17,186.77,186.65,30.42125243]
[1722284455224,16.3849,186.76,186.65,5.59125243]
[1722284455428,50.5247,186.75,186.61,24.83]
[1722284455602,50.5247,186.75,186.61,30.41798643]
[1722284455801,45.17,186.75,186.63,20.0]
[1722284456119,45.17,186.75,186.64,24.83]
[1722284456333,45.17,186.75,186.65,20.0]
[1722284457199,45.17,186.75,186.64,24.83]
[1722284458011,5.355,186.74,186.64,24.83]
[1722284458201,45.17,186.73,186.64,24.83]
[1722284459530,45.17,186.73,186.61,24.83]
[1722284459713,45.17,186.73,186.62,20.0]
[1722284461905,45.17,186.73,186.65,20.0]
[1722284462321,45.17,186.73,186.64,24.83]
[1722284463403,45.17,186.73,186.66,20.0]
[1722284463613,16.3849,186.76,186.64,44.83]
[1722284463833,45.17,186.75,186.67,24.83]
[1722284465307,45.17,186.75,186.64,24.83]
[1722284465907,45.17,186.75,186.64,44.83]
[1722284468812,45.17,186.75,186.65,20.0]
[1722284469218,45.17,186.75,186.71,12.41]
[1722284469624,45.17,186.75,186.73,12.41]
[1722284469825,16.3849,186.76,186.73,12.41]
[1722284470319,45.0,186.75,186.65,20.0]
[1722284470524,0.17,186.74,186.69,12.41]
[1722284472923,16.3849,186.76,186.72,12.41]
[1722284474010,16.3849,186.76,186.74,12.41]
[1722284475712,15.7571,186.81,186.74,12.41]
[1722284475912,45.17,186.8,186.74,12.41]
[1722284478738,45.17,186.8,186.76,12.41]
[1722284481241,45.17,186.8,186.74,12.41]
[1722284481733,50.5234,186.8,186.74,12.41]
[1722284482724,45.17,186.8,186.74,12.41]
[1722284484421,45.17,186.8,186.76,12.41]
[1722284486324,45.17,186.8,186.74,12.41]
[1722284490328,45.17,186.8,186.76,12.41]
[1722284492345,15.7571,186.81,186.76,12.41]
[1722284493044,15.7571,186.81,186.78,12.41]
[1722284493846,34.1854,186.85,186.78,12.41]
[1722284494042,45.17,186.84,186.78,12.41]
[1722284494347,45.17,186.84,186.75,12.41]
[1722284494529,45.17,186.84,186.79,12.41]
[1722284495448,5.3528,186.82,186.72,21.0705804]
[1722284495751,57.58,186.81,186.74,12.41]
[1722284495923,0.17,186.8,186.72,12.41]
[1722284497935,0.17,186.8,186.74,12.41]
[1722284501753,0.17,186.8,186.76,12.41]
[1722284512658,0.17,186.8,186.74,12.41]
[1722284513059,0.17,186.8,186.76,12.41]
[1722284518174,0.17,186.8,186.69,15.3716]
[1722284518373,0.17,186.8,186.74,12.41]
[1722284525339,0.17,186.8,186.76,12.41]
[1722284525755,45.0,186.81,186.76,12.41]
[1722284527069,0.17,186.8,186.76,12.41]
[1722284528560,0.17,186.8,186.78,12.41]
[1722284528863,12.41,186.88,186.78,12.41]
[1722284529162,12.41,186.88,186.82,12.41]
[1722284529671,15.7318,186.9,186.82,12.41]
[1722284529966,12.41,186.89,186.82,12.41]
[1722284530352,45.17,186.88,186.82,12.41]
[1722284533070,0.17,186.88,186.82,12.41]
[1722284535850,12.41,186.87,186.76,16.3156]
[1722284536070,12.41,186.83,186.76,16.3156]
[1722284536282,0.17,186.82,186.76,12.41]
[1722284536477,45.17,186.82,186.76,12.41]
[1722284536950,5.3515,186.87,186.76,12.41]
[1722284537269,12.41,186.86,186.79,12.41]
[1722284537572,0.17,186.85,186.75,6.6572]
[1722284537744,57.58,186.85,186.78,12.41]
[1722284538566,57.58,186.85,186.79,12.41]
[1722284538567,45.17,186.85,186.79,12.41]
[1722284538770,0.17,186.85,186.79,12.41]
[1722284539157,0.17,186.85,186.8,12.41]
[1722284539380,0.17,186.85,186.79,12.41]
[1722284539673,0.17,186.85,186.8,12.41]
[1722284540651,0.17,186.85,186.75,6.6572]
[1722284540850,5.3523,186.84,186.77,12.41]
[1722284541066,45.17,186.83,186.72,16.3156]
[1722284541270,60.4549,186.83,186.71,12.41]
[1722284541476,12.41,186.8,186.72,12.41]
[1722284541658,45.17,186.79,186.73,12.41]
[1722284541857,45.17,186.78,186.73,12.41]
[1722284542259,45.0,186.79,186.74,12.41]
[1722284542456,15.2849,186.83,186.78,12.41]
[1722284542655,15.2849,186.83,186.8,12.41]
[1722284542854,27.6949,186.88,186.8,12.41]
[1722284543055,15.2849,186.88,186.83,12.41]
[1722284544460,45.17,186.87,186.83,12.41]
[1722284546392,12.41,186.9,186.83,12.41]
[1722284546563,45.17,186.89,186.83,12.41]
[1722284547858,45.17,186.89,186.77,20.0]
[1722284548076,12.41,186.88,186.81,12.41]
[1722284548372,45.17,186.87,186.81,12.41]
[1722284549081,45.17,186.87,186.82,12.41]
[1722284549375,12.41,186.9,186.82,12.41]
[1722284549678,45.17,186.89,186.82,12.41]
[1722284552560,45.17,186.89,186.84,12.41]
[1722284555486,0.17,186.89,186.84,12.41]
[1722284557370,0.17,186.89,186.79,6.0827]
[1722284557576,0.17,186.89,186.83,12.41]
[1722284557782,5.3517,186.86,186.74,16.4742]
[1722284558085,12.41,186.87,186.78,12.41]
[1722284558086,0.17,186.85,186.78,12.41]
[1722284558461,17.9319,186.85,186.78,12.41]
[1722284558674,45.0,186.84,186.78,12.41]
[1722284558862,0.17,186.83,186.78,12.41]
[1722284559681,0.17,186.83,186.72,6.0827]
[1722284559882,17.9324,186.83,186.75,12.41]
[1722284560081,0.17,186.83,186.78,12.41]
[1722284560671,0.17,186.83,186.79,12.41]
[1722284562783,60.0469,186.84,186.79,12.41]
[1722284565184,45.0,186.84,186.79,12.41]
[1722284565395,0.17,186.85,186.79,12.41]
[1722284565703,45.17,186.86,186.79,12.41]
[1722284565879,45.17,186.86,186.81,12.41]
[1722284566190,27.6485,186.89,186.82,12.41]
[1722284566379,15.2385,186.89,186.84,12.41]
[1722284566686,0.2164,186.91,186.86,12.41]
[1722284566885,0.2164,186.91,186.8,6.1497]
[1722284566886,0.2164,186.91,186.87,12.41]
[1722284568706,0.2164,186.91,186.86,12.41]
[1722284570894,0.2164,186.91,186.87,12.41]
[1722284576300,0.2164,186.91,186.8,7.21985571]
[1722284576301,0.2164,186.91,186.84,12.41]
[1722284577983,0.2164,186.91,186.85,12.41]
[1722284580407,0.2164,186.91,186.87,12.41]
[1722284584405,0.2164,186.91,186.82,20.0]
[1722284584613,0.2164,186.91,186.86,12.41]
[1722284585189,0.2164,186.91,186.82,20.0]
[1722284585418,0.2164,186.91,186.8,6.1497]
[1722284585593,0.2164,186.91,186.85,12.41]
[1722284588114,12.6264,186.91,186.83,12.41]
[1722284588423,0.2164,186.91,186.85,12.41]
[1722284590000,0.2164,186.91,186.87,12.41]
[1722284590406,0.2164,186.91,186.89,12.41]
[1722284590709,0.2164,186.91,186.9,12.41]
[1722284598702,0.2164,186.91,186.9,32.41]
[1722284599815,0.2164,186.91,186.9,12.41]
[1722284615642,0.2164,186.91,186.9,13.4799216]
[1722284616408,0.2164,186.91,186.9,12.41]
[1722284616610,0.2164,186.91,186.9,13.4799213]
[1722284617815,0.2164,186.91,186.9,12.41]
[1722284619609,0.2164,186.91,186.88,20.0]
[1722284619825,0.2164,186.91,186.9,12.41]
[1722284620236,0.2164,186.91,186.9,13.47992105]
[1722284621820,0.2164,186.91,186.9,12.41]
[1722284622021,0.2164,186.91,186.9,32.41]
[1722284622329,0.2164,186.91,186.9,12.41]
[1722284640238,0.2164,186.91,186.88,12.41]
[1722284642935,0.2164,186.91,186.86,5.58188284]
[1722284643135,0.2164,186.91,186.87,12.41]
[1722284643555,12.6264,186.91,186.79,18.0498569]
[1722284643761,12.6264,186.91,186.73,11.21262761]
[1722284643762,17.7607,186.89,186.81,12.41]
[1722284643968,16.6763,186.88,186.75,64.8867]
[1722284644157,16.6763,186.88,186.79,12.41]
[1722284644158,12.41,186.87,186.79,12.41]
[1722284644351,45.17,186.86,186.76,5.58497136]
[1722284644544,45.17,186.86,186.78,12.41]
[1722284644745,17.762,186.85,186.76,5.58497136]
[1722284645064,12.41,186.82,186.7,21.7053]
[1722284645358,12.41,186.8,186.66,42.1375]
[1722284645559,45.17,186.81,186.7,12.41]
[1722284645560,12.41,186.78,186.7,12.41]
[1722284645951,0.17,186.77,186.7,12.41]
[1722284646257,45.17,186.77,186.7,12.41]
[1722284646468,12.41,186.75,186.62,22.1375]
[1722284646650,15.0728,186.73,186.67,12.41]
[1722284646846,45.0,186.72,186.67,12.41]
[1722284647052,45.17,186.72,186.67,12.41]
[1722284647259,45.17,186.72,186.63,5.58631056]
[1722284647260,45.17,186.72,186.68,12.41]
[1722284647446,15.0728,186.73,186.7,12.41]
[1722284647638,15.0728,186.73,186.71,12.41]
[1722284647845,16.057,186.77,186.71,12.41]
[1722284648038,45.17,186.76,186.71,12.41]
[1722284648242,45.17,186.76,186.66,49.64]
[1722284648655,45.17,186.76,186.7,12.41]
[1722284650062,45.17,186.76,186.64,20.0]
[1722284650351,45.17,186.76,186.7,12.41]
[1722284651162,62.9345,186.76,186.69,12.41]
[1722284651370,62.9345,186.76,186.63,5.58631056]
[1722284651371,17.7647,186.75,186.63,5.58631056]
[1722284651568,6.611,186.73,186.66,12.41]
[1722284651756,0.17,186.72,186.66,12.41]
[1722284651956,45.17,186.72,186.66,12.41]
[1722284652160,45.17,186.72,186.65,12.41]
[1722284652471,45.17,186.72,186.63,5.58631056]
[1722284652671,45.17,186.72,186.65,12.41]
[1722284653448,15.7278,186.7,186.57,20.0]
[1722284653673,15.7278,186.7,186.6,12.41]
[1722284653674,57.58,186.69,186.6,12.41]
[1722284653968,12.41,186.67,186.6,12.41]
[1722284654182,45.17,186.66,186.6,12.41]
[1722284654350,45.17,186.66,186.53,20.0]
[1722284654555,57.58,186.66,186.59,12.41]
[1722284654961,45.17,186.66,186.59,12.41]
[1722284655157,45.17,186.66,186.58,12.41]
[1722284655158,50.5274,186.66,186.58,12.41]
[1722284655464,17.7677,186.65,186.57,12.41]
[1722284655653,45.17,186.64,186.57,12.41]
[1722284656063,45.17,186.64,186.58,12.41]
[1722284656257,0.17,186.64,186.61,12.41]
[1722284656459,12.41,186.68,186.61,12.41]
[1722284656658,45.17,186.67,186.61,12.41]
[1722284657170,45.17,186.67,186.55,20.0]
[1722284657171,45.17,186.67,186.55,44.85]
[1722284657379,50.527,186.67,186.56,1.0717831]
[1722284657956,50.527,186.67,186.55,24.85]
[1722284658155,50.527,186.67,186.56,1.07182062]
[1722284658355,50.527,186.67,186.55,24.85]
[1722284658566,45.17,186.67,186.56,1.0718206]